bitfinex/quotes_ETHUSD_20220123
["timestamp","ask_amount","ask_price","bid_price","bid_amount"]
[1642925239619,0.20965846,2487.4,2486.5,0.04035807]
[1642925240620,0.20965846,2487.4,2486.8,1.24620249]
[1642925242322,2.28111691,2487.3,2487.0,1.32506814]
[1642925242526,2.28111691,2487.3,2486.5,0.04035807]
[1642925243566,4.42748914,2487.6,2486.5,0.04035807]
[1642925243967,4.42748914,2487.6,2486.8,1.10275186]
[1642925244167,3.2367,2487.6,2486.8,1.10275186]
[1642925244364,1.00611,2487.7,2486.8,1.10275186]
[1642925244573,2.00611,2487.7,2486.8,1.10275186]
[1642925244772,1.00611,2487.7,2486.8,1.10275186]
[1642925245573,0.1608,2487.6,2486.5,0.04035807]
[1642925245774,0.20088,2487.5,2486.5,0.04035807]
[1642925245974,1.00628,2487.3,2486.5,0.04035807]
[1642925246177,0.1608,2487.2,2486.5,0.04035807]
[1642925246918,0.1608,2487.2,2486.6,1.23385656]
[1642925248222,1.00628,2487.3,2486.6,1.23385656]
[1642925249825,1.00628,2487.3,2486.5,0.04035807]
[1642925250034,1.81972198,2487.3,2486.5,0.04035807]
[1642925250229,2.01309,2487.1,2486.5,0.04035807]
[1642925250436,0.1605,2487.0,2486.5,0.04035807]
[1642925250666,4.58477791,2487.0,2486.5,0.04035807]
[1642925250869,4.78565791,2487.0,2486.5,0.04035807]
[1642925251073,1.0,2486.9,2486.5,0.04035807]
[1642925251870,2.0065049,2486.9,2486.5,0.04035807]
[1642925252172,0.1605,2487.0,2486.5,0.04035807]
[1642925252370,5.15713,2487.2,2486.5,0.04035807]
[1642925252570,2.28132189,2486.9,2486.8,1.21801079]
[1642925252975,2.28132189,2486.9,2486.5,0.04035807]
[1642925253373,2.28132189,2486.9,2486.3,0.02]
[1642925253374,3.3,2486.8,2486.3,0.02]
[1642925253570,3.4605,2486.8,2486.3,0.02]
[1642925253973,3.3,2486.8,2486.3,0.02]
[1642925255024,2.28152572,2486.7,2486.3,0.02]
[1642925256324,2.28152572,2486.9,2486.3,0.02]
[1642925257625,3.28152572,2486.9,2486.3,0.02]
[1642925258566,2.28152572,2486.9,2486.3,0.02]
[1642925258765,2.28152572,2486.8,2486.3,0.02]
[1642925260069,2.28152572,2486.9,2486.3,0.02]
[1642925262322,2.26545491,2486.9,2486.3,0.02]
[1642925262521,1.3678,2487.0,2486.3,0.02]
[1642925262920,1.3678,2487.0,2486.4,0.07881246]
[1642925263121,1.3678,2487.0,2486.3,0.02]
[1642925263523,1.9678,2487.0,2486.3,0.02]
[1642925263722,2.01322,2486.8,2486.3,0.02]
[1642925263921,3.2207062,2486.8,2486.3,0.02]
[1642925264323,1.1605,2486.7,2486.3,0.02]
[1642925264529,1.0066,2486.6,2486.3,0.02]
[1642925268975,1.0066,2486.6,2486.3,1.24103007]
[1642925269178,1.60122176,2487.5,2486.7,1.10418884]
[1642925269447,9.8189089,2487.8,2486.9,0.01212945]
[1642925269448,3.7905,2487.8,2486.9,0.01212945]
[1642925270049,0.36168,2488.0,2487.4,1.51885321]
[1642925270254,0.84018386,2490.0,2487.4,3.0782413]
[1642925270255,2.28105943,2487.7,2487.4,3.0782413]
[1642925270449,2.28105943,2487.7,2487.4,1.51885321]
[1642925271449,2.28105943,2488.3,2487.4,1.51885321]
[1642925271650,2.28105943,2488.3,2487.8,1.21466949]
[1642925271849,2.28105943,2488.3,2487.2,3.640259]
[1642925272250,2.28105943,2488.3,2487.1,0.1607]
[1642925272452,2.44135943,2488.3,2486.9,0.75282945]
[1642925272653,2.28105943,2488.2,2486.9,0.75282945]
[1642925272850,2.28105943,2488.2,2487.4,1.14563191]
[1642925273265,2.28105943,2488.2,2486.9,0.75282945]
[1642925273468,2.28105943,2488.2,2487.0,0.17107]
[1642925273666,2.28105943,2488.2,2487.0,0.75107]
[1642925274069,2.28105943,2488.3,2487.1,0.3]
[1642925274267,2.28105943,2488.3,2487.7,1.24249803]
[1642925274474,2.28105943,2488.3,2487.4,0.58]
[1642925274673,2.28105943,2488.3,2487.4,0.75107]
[1642925274873,2.28105943,2488.3,2487.4,1.05107]
[1642925275073,2.28105943,2488.3,2487.5,1.12287382]
[1642925275273,2.28105943,2488.5,2488.1,1.44350511]
[1642925275673,2.28105943,2488.5,2487.4,0.58]
[1642925275876,0.1603,2488.4,2487.0,0.91177]
[1642925276072,4.6406479,2488.4,2487.0,0.91177]
[1642925276272,0.1603,2488.4,2487.0,0.91177]
[1642925276476,2.28105943,2488.3,2487.0,0.91177]
[1642925276675,2.28105943,2488.3,2488.0,1.43454205]
[1642925277825,0.60887566,2488.7,2488.0,1.43454205]
[1642925278029,3.03369323,2488.8,2488.4,1.23233819]
[1642925278227,2.87299323,2488.8,2488.4,1.23233819]
[1642925279130,2.28010387,2488.7,2488.4,0.09228626]
[1642925285526,2.28010387,2488.9,2488.4,0.09228626]
[1642925285927,2.28010387,2488.9,2488.4,0.67228626]
[1642925286429,2.28010387,2488.9,2488.0,0.58]
[1642925286628,4.48040905,2488.8,2488.0,0.58]
[1642925286840,4.49250649,2488.8,2487.7,0.1607]
[1642925287029,1.3,2488.7,2487.7,0.1607]
[1642925287229,5.49601855,2488.6,2487.7,0.1607]
[1642925287430,5.49601855,2488.6,2487.7,1.4106887]
[1642925287629,1.0,2488.5,2487.7,1.4106887]
[1642925287830,4.31574228,2488.4,2487.7,1.4106887]
[1642925288031,2.44040387,2488.4,2487.7,2.63786414]
[1642925288472,2.44040387,2488.4,2487.7,1.4106887]
[1642925289075,2.44040387,2488.4,2487.7,1.2499887]
[1642925289376,2.28010387,2488.3,2487.7,1.2499887]
[1642925289580,0.1607,2488.2,2487.7,1.2499887]
[1642925289779,0.1607,2488.2,2487.3,3.8932]
[1642925289978,0.1607,2488.2,2487.0,3.9052]
[1642925289979,4.42042615,2488.2,2487.0,3.9052]
[1642925290178,4.42042615,2488.2,2486.9,5.65547]
[1642925290481,4.42042615,2488.2,2486.9,4.44177]
[1642925290678,4.42042615,2488.2,2486.9,5.10907619]
[1642925290879,4.42042615,2488.2,2486.9,4.93800619]
[1642925290880,2.20691,2488.1,2486.9,4.93800619]
[1642925291080,0.1605,2488.0,2486.9,4.93800619]
[1642925291279,0.1605,2488.0,2487.0,0.81584851]
[1642925291678,0.1605,2488.0,2486.9,1.24730619]
[1642925291934,0.20088,2487.9,2486.9,1.24730619]
[1642925292131,0.1603,2487.8,2486.9,1.24730619]
[1642925292732,0.1603,2487.8,2486.9,2.62502045]
[1642925293135,0.1603,2487.8,2487.3,1.28630341]
[1642925293737,0.1603,2487.8,2486.9,1.37771426]
[1642925293936,1.36138,2487.9,2486.9,1.37771426]
[1642925294137,1.36138,2487.9,2486.5,3.8328]
[1642925294343,2.28095653,2487.8,2486.5,3.8328]
[1642925294545,0.1608,2487.7,2486.5,3.8328]
[1642925295143,0.1608,2487.7,2486.8,1.30849571]
[1642925295342,2.44175653,2487.8,2486.8,1.30849571]
[1642925295543,0.1608,2487.8,2486.8,1.30849571]
[1642925295775,1.1608,2487.8,2486.8,1.30849571]
[1642925295975,0.1608,2487.8,2486.8,1.30849571]
[1642925296775,2.28098431,2487.7,2486.8,1.30849571]
[1642925296977,0.1605,2487.6,2486.8,1.30849571]
[1642925298381,0.1603,2487.7,2486.8,1.30849571]
[1642925298584,0.16,2487.8,2486.8,1.30849571]
[1642925298785,0.16,2487.8,2487.2,1.41894539]
[1642925299419,2.28086381,2487.7,2487.2,1.41894539]
[1642925300823,2.28086381,2488.0,2486.7,0.7408]
[1642925301026,2.28086381,2488.0,2486.7,1.3408]
[1642925302025,4.14701744,2487.9,2486.7,0.1608]
[1642925302324,0.36088,2487.8,2486.7,0.15982237]
[1642925302526,1.36088,2487.8,2486.7,0.15982237]
[1642925302923,1.36088,2487.8,2486.8,1.29880758]
[1642925303182,2.28086381,2487.7,2486.8,1.29880758]
[1642925303474,0.1608,2487.6,2486.8,1.29880758]
[1642925304176,0.1608,2487.6,2487.0,1.19911967]
[1642925304376,2.28086381,2487.7,2487.0,1.19911967]
[1642925304578,0.1608,2488.0,2487.0,1.19911967]
[1642925305181,0.1608,2488.0,2487.7,1.44978413]
[1642925305977,2.28075091,2487.9,2486.9,0.58]
[1642925307123,2.28075091,2487.9,2487.5,1.18784288]
[1642925308429,0.1608,2488.0,2487.5,1.18784288]
[1642925308632,0.1607,2488.1,2487.5,1.18784288]
[1642925309428,0.1607,2488.1,2487.6,1.45626696]
[1642925309632,0.1607,2488.5,2487.5,1.35891288]
[1642925309831,0.03819997,2488.7,2487.5,1.93891288]
[1642925310030,0.03819997,2488.7,2487.6,3.68122632]
[1642925310228,0.03819997,2488.7,2487.7,0.03412733]
[1642925310432,0.03819997,2488.7,2488.1,1.53016349]
[1642925310901,2.28022721,2488.6,2488.1,1.53016349]
[1642925311902,2.28022721,2488.6,2488.2,4.01070154]
[1642925312101,2.28022721,2488.8,2488.4,1.00272996]
[1642925312907,2.28022721,2488.8,2488.5,1.25870246]
[1642925313509,2.28022721,2488.9,2488.5,1.25870246]
[1642925316135,2.28022721,2488.9,2488.5,1.83870246]
[1642925317136,2.28022721,2488.9,2488.5,0.58]
[1642925317335,2.28022721,2488.9,2488.2,0.58]
[1642925318286,2.28022721,2488.9,2488.6,1.22855499]
[1642925318479,2.28022721,2489.2,2488.6,1.22855499]
[1642925318679,0.1607,2489.1,2488.6,1.22855499]
[1642925318877,2.28022721,2489.2,2488.6,1.22855499]
[1642925319078,0.1607,2489.1,2488.6,1.22855499]
[1642925319687,2.28022721,2489.0,2488.6,1.22855499]
[1642925320984,2.28022721,2489.3,2488.6,1.22855499]
[1642925321185,0.1607,2489.2,2488.6,1.22855499]
[1642925321387,0.1607,2489.2,2488.6,4.70068656]
[1642925321922,0.1607,2489.2,2489.0,1.35699667]
[1642925322126,2.28022721,2489.3,2489.0,1.35699667]
[1642925322127,2.44092721,2489.3,2489.0,1.35699667]
[1642925322329,2.28022721,2489.1,2489.0,1.35699667]
[1642925323933,2.28022721,2489.1,2488.5,0.58]
[1642925324733,0.09790952,2489.4,2488.5,0.58]
[1642925324931,0.1607,2489.3,2488.5,0.58]
[1642925325331,0.1607,2489.3,2488.7,1.52427835]
[1642925325532,0.1607,2489.3,2488.5,0.58]
[1642925325803,0.01237557,2489.2,2487.8,4.0477]
[1642925326007,0.1607,2489.1,2487.8,4.467]
[1642925326201,0.20088,2489.0,2487.8,0.58]
[1642925326400,0.01260102,2488.6,2487.8,0.58]
[1642925326600,0.36158,2488.5,2487.8,0.58]
[1642925326803,0.36158,2488.5,2487.4,0.1607]
[1642925327002,0.36158,2488.5,2487.4,0.15935034]
[1642925327003,0.00777122,2488.4,2487.4,0.15935034]
[1642925327200,0.00777122,2488.4,2487.3,3.7579]
[1642925327201,0.36158,2488.3,2487.3,3.7579]
[1642925327600,0.36158,2488.3,2487.5,1.28673123]
[1642925327803,0.36158,2488.3,2487.7,1.20779447]
[1642925329200,0.1607,2488.5,2487.7,1.20779447]
[1642925329829,2.28033225,2488.4,2487.7,1.20779447]
[1642925331031,2.28033225,2488.5,2487.7,1.20779447]
[1642925331431,0.1607,2488.4,2487.7,1.20779447]
[1642925331631,2.44103225,2488.5,2487.7,1.20779447]
[1642925332332,0.1607,2488.5,2487.7,1.20779447]
[1642925332732,0.1607,2488.5,2488.1,1.32262683]
[1642925334184,0.01260102,2488.6,2487.7,0.58]
[1642925334784,2.28040765,2488.5,2487.7,0.58]
[1642925334986,2.28040765,2488.5,2487.4,0.58]
[1642925335186,2.28040765,2488.5,2487.9,1.35058843]
[1642925338743,2.28040765,2488.5,2488.3,1.45347636]
[1642925338947,2.44110765,2488.5,2488.3,1.45347636]
[1642925339746,2.28040765,2488.5,2488.3,1.45347636]
[1642925339944,0.1607,2488.8,2488.3,1.45347636]
[1642925340148,0.59977091,2488.9,2488.3,1.45347636]
[1642925341181,2.28009037,2488.8,2488.3,1.45347636]
[1642925342782,2.28009037,2488.8,2488.7,1.42847693]
[1642925343884,2.73648276,2489.3,2488.7,1.42847693]
[1642925345135,2.27972225,2489.3,2488.7,1.42847693]
[1642925346138,2.27972225,2489.3,2489.1,1.30041994]
[1642925346540,2.27972225,2489.3,2488.5,1.54031296]
[1642925347542,2.27972225,2489.3,2488.9,1.44332111]
[1642925348187,2.27972225,2489.3,2488.9,1.4420692]
[1642925348377,2.27972225,2489.3,2488.4,0.58]
[1642925348780,4.32203265,2489.2,2488.2,0.9798]
[1642925348981,4.62203265,2489.2,2488.2,0.9798]
[1642925349185,0.01249304,2488.6,2488.2,0.9798]
[1642925349392,0.1607,2488.5,2488.2,0.9798]
[1642925351190,0.1607,2488.8,2488.2,0.9798]
[1642925351387,0.1607,2488.8,2487.7,3.9901]
[1642925351788,0.1607,2488.8,2487.9,1.41165481]
[1642925352056,0.1607,2488.8,2488.2,1.28960994]
[1642925352247,0.1607,2488.8,2487.7,3.9901]
[1642925353049,0.15925358,2488.8,2487.7,3.9901]
[1642925353250,0.20088,2488.7,2487.4,0.1607]
[1642925353457,0.20088,2488.7,2487.1,3.827]
[1642925353458,1.17915299,2488.6,2487.1,3.827]
[1642925353652,0.01926523,2488.4,2487.1,3.827]
[1642925353852,0.1607,2488.3,2487.1,3.827]
[1642925354051,1.1607,2488.4,2487.1,3.827]
[1642925354254,4.13401631,2488.3,2487.1,3.827]
[1642925354452,0.1607,2488.2,2487.4,1.10072577]
[1642925354658,1.36158,2488.2,2487.4,1.10072577]
[1642925355055,0.36158,2488.2,2487.7,1.16289138]
[1642925355686,0.36158,2488.2,2487.4,1.10072577]
[1642925356485,0.20088,2488.2,2487.4,1.10072577]
[1642925356683,0.20088,2488.2,2487.6,1.32426138]
[1642925358490,1.4607,2488.4,2487.8,1.22449314]
[1642925358491,0.1607,2488.4,2487.8,1.22449314]
[1642925358690,0.36158,2488.5,2487.8,1.22449314]
[1642925359089,2.28039782,2488.4,2487.8,1.22449314]
[1642925359530,2.28039782,2488.4,2487.6,1.32426138]
[1642925360836,2.28039782,2488.4,2487.6,2.47887751]
[1642925361736,2.28039782,2488.4,2487.6,1.32426138]
[1642925362738,1.17915299,2488.6,2488.1,1.20829874]
[1642925362739,2.28039782,2488.5,2488.1,1.20829874]
[1642925363801,2.28039782,2488.5,2488.3,1.48968586]
[1642925364002,2.28039782,2488.7,2488.3,1.48968586]
[1642925364202,2.28039782,2488.7,2487.8,0.01251651]
[1642925364403,2.28039782,2488.7,2487.6,0.58]
[1642925364803,2.28039782,2488.7,2487.5,0.17107]
[1642925365005,2.28039782,2488.7,2487.3,0.1607]
[1642925365006,1.00588,2488.5,2487.3,0.1607]
[1642925365211,1.00588,2488.5,2487.5,1.43533323]
[1642925365406,2.44109782,2488.4,2487.5,1.43533323]
[1642925365607,2.44109782,2488.4,2487.8,0.81048933]
[1642925365806,2.44109782,2488.4,2487.5,1.43533323]
[1642925365807,2.28039782,2488.4,2487.5,1.43533323]
[1642925366608,2.28039782,2488.7,2488.3,1.31369933]
[1642925368451,2.28039782,2488.7,2487.4,1.1949]
[1642925368654,4.03862206,2488.6,2487.4,0.3]
[1642925368854,2.28039782,2488.7,2487.4,0.3]
[1642925369055,2.28039782,2488.5,2487.3,1.52422828]
[1642925369256,2.28039782,2488.5,2487.3,0.92422828]
[1642925369455,0.1607,2488.4,2487.8,1.1037793]
[1642925370257,0.1607,2488.4,2487.9,0.9118298]
[1642925370460,2.28039782,2488.3,2487.9,0.9118298]
[1642925370697,2.28039782,2488.3,2487.8,1.1037793]
[1642925371684,2.28039782,2488.5,2487.8,2.29798505]
[1642925372581,2.28039782,2488.5,2488.2,1.16648165]
[1642925372987,2.28039782,2488.6,2487.8,1.19420575]
[1642925373383,2.28039782,2488.6,2487.5,0.17107]
[1642925374185,2.28039782,2488.6,2488.2,1.51356549]
[1642925375039,2.28039782,2488.6,2488.2,1.5122489]
[1642925375444,2.28039782,2488.7,2488.4,0.03316629]
[1642925375646,2.28039782,2488.7,2488.3,2.06044863]
[1642925375842,2.28039782,2488.7,2488.3,2.36044863]
[1642925376639,2.28039782,2488.7,2488.3,2.53151863]
[1642925376844,2.28039782,2489.3,2489.2,1.13787694]
[1642925377041,2.28039782,2489.3,2489.2,0.98246746]
[1642925377955,2.65,2489.2,2488.9,0.84805686]
[1642925378188,2.65,2489.2,2489.1,1.30651104]
[1642925378387,2.65,2489.2,2488.3,1.21177]
[1642925379196,2.28039782,2489.1,2488.3,1.21177]
[1642925379395,2.28039782,2489.1,2488.7,1.23283985]
[1642925379798,0.1607,2489.0,2488.7,1.23283985]
[1642925380298,0.1607,2489.0,2488.1,3.6806]
[1642925380497,2.28039782,2488.9,2488.3,1.27168431]
[1642925381097,2.28039782,2488.9,2488.5,1.24775716]
[1642925381797,2.28039782,2489.0,2488.5,1.24775716]
[1642925382240,2.28039782,2489.0,2488.5,2.80960956]
[1642925382443,2.28039782,2489.0,2488.5,1.24775716]
[1642925382739,2.28039782,2489.0,2487.9,0.17107]
[1642925382940,2.28039782,2489.0,2487.8,4.0157]
[1642925382941,0.1607,2488.9,2487.8,4.0157]
[1642925383138,0.1607,2488.9,2487.8,3.855]
[1642925383540,0.1607,2488.9,2487.7,1.40577]
[1642925383738,2.28039782,2489.0,2487.8,0.1607]
[1642925383939,2.28039782,2489.0,2487.9,0.17107]
[1642925384545,2.28039782,2489.0,2488.8,1.09136703]
[1642925385545,2.28039782,2489.3,2488.8,1.09136703]
[1642925385988,2.2790791,2489.3,2488.8,1.09136703]
[1642925386189,2.2790791,2489.3,2489.2,1.34489728]
[1642925388190,2.43649252,2489.3,2489.2,1.34489728]
[1642925388595,2.2790791,2489.3,2489.2,1.34489728]
[1642925389195,2.2790791,2489.3,2488.5,0.1607]
[1642925389436,2.2790791,2489.3,2488.4,0.62029044]
[1642925389637,2.2790791,2489.3,2488.4,0.04029044]
[1642925389837,2.2790791,2489.3,2488.3,0.1]
[1642925389838,0.15741342,2488.7,2488.3,0.1]
[1642925390037,0.15741342,2488.7,2488.1,3.9624]
[1642925390237,0.15741342,2488.7,2488.4,1.53496205]
[1642925390437,0.1607,2489.1,2488.4,1.53496205]
[1642925390842,0.1607,2489.3,2488.4,1.53496205]
[1642925391443,0.15741342,2488.8,2488.4,3.01817906]
[1642925392351,0.1607,2489.3,2488.4,3.01817906]
[1642925392945,1.3464,2489.4,2488.4,3.01817906]
[1642925393209,2.27979117,2489.2,2488.4,3.01817906]
[1642925393397,0.15741342,2488.7,2488.4,3.01817906]
[1642925393801,0.1607,2489.1,2488.4,3.01817906]
[1642925394603,0.1607,2489.3,2488.4,3.01817906]
[1642925395203,0.1607,2489.3,2488.5,3.59899015]
[1642925395602,0.0126771,2489.5,2488.5,3.59899015]
[1642925395603,0.1607,2489.4,2488.5,3.59899015]
[1642925395804,2.11024812,2489.2,2488.9,1.44837319]
[1642925396409,1.9528347,2489.2,2488.9,1.44837319]
[1642925397042,0.0126771,2489.5,2488.9,1.44837319]
[1642925397043,1.9528347,2489.4,2488.9,1.44837319]
[1642925397437,0.15741342,2489.2,2488.9,1.44837319]
[1642925397836,0.15741342,2489.2,2488.5,4.17899015]
[1642925398238,0.15741342,2489.2,2488.5,0.58]
[1642925398838,0.15741342,2489.2,2488.7,1.19666177]
[1642925399041,0.15741342,2489.2,2488.8,1.29099414]
[1642925399643,0.15741342,2489.2,2488.6,3.4924601]
[1642925400045,0.15741342,2489.2,2488.5,0.58]
[1642925400243,0.1607,2489.4,2488.8,1.41658208]
[1642925400686,0.1607,2489.6,2488.8,1.41658208]
[1642925400890,0.1607,2489.6,2488.5,0.58]
[1642925400891,1.95203942,2489.3,2488.5,0.58]
[1642925401090,1.95203942,2489.3,2488.6,3.43912044]
[1642925401291,1.95203942,2489.3,2488.9,1.34911206]
[1642925401890,0.15741342,2489.1,2488.9,1.34911206]
[1642925402492,1.95203942,2489.5,2488.6,3.43640421]
[1642925402693,0.1607,2489.4,2488.5,0.58]
[1642925403095,0.1607,2489.4,2488.6,4.17395214]
[1642925403292,0.03819997,2489.7,2488.6,4.17395214]
[1642925403494,0.15741342,2489.5,2488.6,4.17395214]
[1642925403693,0.15741342,2489.5,2489.2,1.18070265]
[1642925404197,0.15741342,2489.5,2488.6,4.17395214]
[1642925404646,1.95197803,2489.4,2488.6,4.17395214]
[1642925405045,1.95197803,2489.4,2489.2,1.32581788]
[1642925405653,1.95197803,2489.4,2489.3,4.20012678]
[1642925405654,7.803e-05,2489.4,2489.3,4.20012678]
[1642925405848,2.54476435,2490.2,2489.3,0.58]
[1642925405849,7.803e-05,2489.6,2489.3,0.58]
[1642925406147,7.803e-05,2489.6,2489.4,0.03908928]
[1642925406347,7.803e-05,2489.6,2489.5,4.83]
[1642925406748,7.803e-05,2489.6,2489.5,5.00107]
[1642925406946,7.803e-05,2489.6,2489.5,5.30107]
[1642925407147,0.15741342,2490.4,2490.3,1.21393964]
[1642925407353,0.1605,2490.6,2490.3,1.67254568]
[1642925407550,0.161074,2490.7,2490.4,3.62012678]
[1642925407751,0.161074,2490.7,2490.5,0.61563164]
[1642925407953,0.1605,2491.4,2490.5,0.61563164]
[1642925407954,0.1605,2491.4,2490.6,0.17107]
[1642925408180,7.60592005,2492.1,2490.7,0.58]
[1642925408181,0.1605,2491.7,2490.7,0.58]
[1642925408383,7.60592005,2492.1,2490.7,0.88]
[1642925408384,0.1605,2492.0,2490.7,0.88]
[1642925408586,0.1605,2492.0,2491.0,1.09118297]
[1642925408587,0.15741342,2491.1,2491.0,1.09118297]
[1642925409887,0.15741342,2491.1,2491.0,4.56622287]
[1642925410587,0.15741342,2491.1,2491.0,1.09118297]
[1642925412035,0.1605,2492.0,2491.0,4.71844519]
[1642925412235,0.1605,2492.0,2491.1,0.58]
[1642925412432,1.2108,2492.2,2491.2,3.62726222]
[1642925412433,0.1605,2492.2,2491.2,3.62726222]
[1642925412634,0.1605,2492.2,2491.3,0.58]
[1642925412833,0.1605,2492.6,2491.4,0.03569515]
[1642925413035,0.1605,2492.6,2491.8,1.36483605]
[1642925413236,3.62726222,2492.4,2491.0,7.42007]
[1642925413437,0.1605,2492.3,2491.4,0.58]
[1642925413635,3.78776222,2492.5,2491.2,0.58]
[1642925413936,0.1605,2492.5,2491.2,0.58]
[1642925414134,3.78776222,2492.5,2491.2,0.58]
[1642925414341,0.15741342,2492.4,2491.8,1.5128103]
[1642925415544,0.15741342,2492.4,2491.8,2.39350696]
[1642925415798,0.1605,2492.6,2491.8,3.57350696]
[1642925415997,0.1605,2493.0,2491.9,0.63157]
[1642925416198,0.1605,2493.0,2492.0,0.58]
[1642925416396,0.1605,2493.0,2492.5,1.10613587]
[1642925416602,0.1605,2493.0,2492.0,4.4125]
[1642925417602,0.1605,2493.0,2492.1,0.17107]
[1642925417903,0.0121072,2493.4,2492.5,1.16749474]
[1642925417904,0.15741342,2492.8,2492.5,1.16749474]
[1642925418099,0.15741342,2492.8,2492.6,3.59315975]
[1642925418500,0.0121072,2493.4,2492.9,1.3239784]
[1642925418701,0.04,2493.6,2492.9,1.3239784]
[1642925418702,0.2003,2493.6,2492.9,1.3239784]
[1642925418903,0.2003,2493.6,2493.0,3.50362263]
[1642925419104,0.2003,2493.6,2493.0,3.54274792]
[1642925419305,0.2003,2493.6,2493.0,3.63941582]
[1642925419742,0.04,2493.6,2493.2,0.06447514]
[1642925419942,0.04,2493.6,2493.3,0.58]
[1642925420143,0.19741342,2493.6,2493.4,3.8610028]
[1642925420344,0.19741342,2493.6,2493.5,1.18470217]
[1642925420549,0.04,2493.6,2493.5,1.18470217]
[1642925420741,0.08035807,2493.6,2493.5,1.18470217]
[1642925421343,0.08035807,2493.6,2493.5,4.79882213]
[1642925421544,0.08035807,2493.6,2493.5,1.18470217]
[1642925421744,0.23777149,2493.6,2493.5,1.18470217]
[1642925423197,0.08035807,2493.6,2493.5,1.18470217]
[1642925424190,5.807e-05,2493.6,2493.5,1.8130786]
[1642925424391,5.807e-05,2493.6,2493.3,0.88]
[1642925424594,5.807e-05,2493.6,2493.5,0.17107]
[1642925424797,5.807e-05,2493.6,2493.5,0.75107]
[1642925424996,5.807e-05,2493.6,2493.5,1.05107]
[1642925425194,5.807e-05,2493.6,2493.5,0.58]
[1642925425394,0.15747149,2493.6,2493.5,0.58]
[1642925425596,0.15747149,2493.6,2493.1,0.1603]
[1642925425799,0.15747149,2493.6,2493.0,0.3]
[1642925425996,0.15747149,2493.6,2492.9,1.1292]
[1642925426197,0.15747149,2493.6,2492.9,0.8292]
[1642925426596,0.15747149,2493.6,2493.2,1.25169634]
[1642925428439,0.15747149,2493.6,2493.0,3.86188535]
[1642925428639,0.15747149,2493.6,2493.0,3.56188535]
[1642925428841,0.15747149,2493.6,2493.0,4.2234307]
[1642925429042,0.10747149,2493.6,2493.0,4.6945007]
[1642925429446,0.10747149,2493.6,2493.0,4.2234307]
[1642925429645,0.10747149,2493.6,2493.0,3.56188535]
[1642925429848,0.10747149,2493.6,2493.5,1.11773031]
[1642925432389,0.1603,2494.4,2493.5,1.11773031]
[1642925433595,0.10747149,2494.3,2493.5,1.11773031]
[1642925435147,0.10747149,2494.3,2493.6,3.52735881]
[1642925435744,0.10747149,2494.3,2493.5,1.11773031]
[1642925436345,0.10747149,2494.3,2493.9,1.30797118]
[1642925436750,0.1603,2494.4,2493.9,1.30797118]
[1642925436948,7.48,2494.6,2493.9,1.30797118]
[1642925438047,0.10747149,2494.5,2493.9,1.30797118]
[1642925439194,0.10747149,2494.5,2494.0,3.56085302]
[1642925439394,0.10747149,2494.5,2494.0,3.51936264]
[1642925439600,0.10747149,2494.5,2493.9,1.30797118]
[1642925439801,0.10747149,2494.5,2494.3,1.53002066]
[1642925440411,5.26538,2495.2,2494.4,3.62726222]
[1642925440412,0.1603,2495.1,2494.4,3.62726222]
[1642925440601,0.1603,2495.1,2494.4,0.823]
[1642925440802,0.1603,2495.2,2494.4,0.823]
[1642925441002,0.1603,2495.2,2494.4,1.123]
[1642925441208,0.1603,2495.2,2494.5,3.62726222]
[1642925441401,11.8488,2495.6,2495.1,1.3953742]
[1642925441402,0.10747149,2495.4,2495.1,1.3953742]
[1642925442045,0.1603,2496.0,2495.1,1.9953742]
[1642925442248,0.04,2496.1,2495.2,0.58]
[1642925442446,0.04,2496.1,2494.6,3.67506818]
[1642925442447,0.17269277,2496.0,2494.9,0.19385694]
[1642925442648,0.17269277,2496.0,2494.9,0.1602]
[1642925442851,0.01284088,2495.4,2494.9,0.1602]
[1642925443053,0.1603,2495.3,2494.9,0.1602]
[1642925443248,0.10747149,2495.2,2494.9,0.1602]
[1642925444250,0.05747149,2495.2,2494.9,0.1602]
[1642925446090,0.1603,2495.1,2494.9,0.1602]
[1642925446293,0.1603,2495.1,2494.3,0.3424]
[1642925446589,0.1603,2495.1,2494.3,0.2424]
[1642925447191,0.1603,2495.1,2494.5,1.19394903]
[1642925447391,0.05747149,2495.2,2494.6,3.45218396]
[1642925447590,0.05747149,2495.2,2494.5,1.19394903]
[1642925447990,0.05747149,2495.2,2494.3,0.2424]
[1642925448293,0.1603,2495.1,2494.3,0.2424]
[1642925448493,0.05747149,2495.2,2494.3,0.2424]
[1642925449090,0.05747149,2495.2,2494.4,1.15724399]
[1642925449742,0.05747149,2495.2,2494.5,3.73052947]
[1642925450543,0.05747149,2495.2,2494.7,1.19085646]
[1642925450745,0.05747149,2495.2,2494.8,4.35511859]
[1642925450949,0.05747149,2495.2,2494.5,3.99152397]
[1642925451143,0.05747149,2495.2,2494.8,1.2872638]
[1642925451344,0.05747149,2495.2,2494.5,3.99152397]
[1642925451545,0.05747149,2495.2,2494.4,1.5]
[1642925451743,0.05747149,2495.2,2494.4,5.08209516]
[1642925452444,0.05747149,2495.2,2495.1,1.26207923]
[1642925452645,0.05747149,2495.2,2494.4,5.84239516]
[1642925452845,0.05747149,2495.2,2494.4,7.15530242]
[1642925453047,0.05747149,2495.2,2494.4,5.24239516]
[1642925453287,0.05747149,2495.2,2494.4,5.84239516]
[1642925453491,0.05747149,2495.2,2494.5,0.17107]
[1642925453787,0.05747149,2495.2,2494.9,1.08736152]
[1642925453988,0.05747149,2495.2,2494.4,5.08209516]
[1642925454187,0.05747149,2495.2,2494.4,1.5]
[1642925454391,0.06958018,2495.2,2494.4,1.5]
[1642925454594,0.1603,2495.1,2494.4,1.5]
[1642925454790,0.06958018,2495.2,2494.4,1.5]
[1642925454995,0.06958018,2495.2,2494.5,1.12442127]
[1642925455397,0.06958018,2495.2,2494.4,1.5]
[1642925456595,0.06958018,2495.2,2494.4,2.63134859]
[1642925456942,0.06958018,2495.2,2494.5,3.83640017]
[1642925457347,0.06958018,2495.2,2494.4,2.63134859]
[1642925457547,0.05747149,2495.2,2494.8,1.15024256]
[1642925457747,0.05747149,2495.2,2494.5,3.78756222]
[1642925457949,1.3454,2495.7,2494.5,3.78756222]
[1642925457950,7.48,2495.4,2494.6,0.17107]
[1642925458149,1.1851,2495.7,2494.6,0.17107]
[1642925458349,1.1851,2495.7,2495.3,1.36658967]